bitfinex-derivatives/quotes_BTCF0:USTF0_20240917
["timestamp","ask_amount","ask_price","bid_price","bid_amount"]
[1726580890878,0.0004,59107.0,59103.0,0.38880101]
[1726580891087,0.0004,59107.0,59103.0,0.39012101]
[1726580891285,0.0004,59107.0,59103.0,0.03012101]
[1726580891482,0.0004,59107.0,59103.0,0.38880101]
[1726580891685,0.05231065,59107.0,59106.0,0.090989]
[1726580891893,0.05234163,59107.0,59106.0,0.090989]
[1726580892188,0.05234163,59107.0,59106.0,0.104989]
[1726580893393,0.05234163,59107.0,59106.0,0.105989]
[1726580893799,0.05234163,59107.0,59106.0,0.466789]
[1726580893996,0.05234163,59107.0,59106.0,0.465789]
[1726580894182,0.05234163,59107.0,59106.0,1.668938]
[1726580894495,0.21726417,59120.0,59113.0,0.084579]
[1726580894797,0.06067659,59127.0,59119.0,0.44497]
[1726580894997,0.0644,59125.0,59119.0,0.3604]
[1726580895202,0.0644,59125.0,59123.0,0.0004]
[1726580895699,0.06067659,59131.0,59124.0,0.3604]
[1726580895880,0.3608,59132.0,59130.0,0.23]
[1726580896287,0.3608,59132.0,59131.0,0.084553]
[1726580896891,0.06067659,59136.0,59130.0,0.23]
[1726580897193,0.0644,59137.0,59129.0,0.3608]
[1726580897194,0.12507659,59137.0,59136.0,0.084546]
[1726580897410,0.0644,59137.0,59136.0,0.445746]
[1726580898693,0.0644,59137.0,59136.0,0.47425636]
[1726580899001,0.0684,59137.0,59136.0,0.47425636]
[1726580899201,0.004,59137.0,59136.0,0.47425636]
[1726580899410,0.05591119,59137.0,59136.0,0.38971036]
[1726580899794,0.05591119,59137.0,59136.0,0.47425636]
[1726580900604,0.05591119,59137.0,59136.0,0.4221188]
[1726580900900,0.41271093,59137.0,59136.0,0.02951036]
[1726580901202,0.08455,59133.0,59124.0,0.0004]
[1726580901404,0.084962,59125.0,59124.0,0.0004]
[1726580901699,0.13687293,59125.0,59122.0,0.02841194]
[1726580901903,0.0004,59123.0,59119.0,0.00253725]
[1726580902098,0.0004,59120.0,59119.0,0.00253725]
[1726580902298,0.0004,59123.0,59120.0,0.084569]
[1726580902495,0.0004,59123.0,59119.0,0.03077292]
[1726580902496,0.05192761,59122.0,59121.0,0.084568]
[1726580903001,0.21709549,59123.0,59122.0,0.084566]
[1726580903198,0.21709549,59123.0,59122.0,0.084966]
[1726580903594,0.21709549,59123.0,59122.0,0.0004]
[1726580903802,0.05232113,59123.0,59122.0,0.0004]
[1726580905001,0.084566,59122.0,59121.0,0.006]
[1726580905195,0.70500372,59122.0,59121.0,0.006]
[1726580905394,1.25308259,59122.0,59121.0,0.006]
[1726580905695,0.084571,59119.0,59113.0,0.02894319]
[1726580905999,0.57783036,59114.0,59111.0,0.084582]
[1726580906298,0.57783036,59114.0,59108.0,0.23]
[1726580906299,0.084582,59111.0,59108.0,0.0014]
[1726580906501,0.084582,59111.0,59100.0,0.00253804]
[1726580906502,0.084586,59108.0,59100.0,0.00253804]
[1726580906702,0.084588,59107.0,59101.0,0.02849958]
[1726580906901,0.3616,59102.0,59087.0,0.0084]
[1726580907114,0.3616,59102.0,59078.0,0.3608]
[1726580907115,0.0008,59088.0,59086.0,0.084618]
[1726580907403,0.084621,59084.0,59083.0,0.00253872]
[1726580907612,0.72815184,59084.0,59083.0,0.00253872]
[1726580907792,1.30420743,59084.0,59071.0,0.3892882]
[1726580907993,0.11260743,59083.0,59082.0,0.36]
[1726580908406,0.05193084,59083.0,59082.0,0.36]
[1726580908593,0.03793084,59083.0,59082.0,0.36]
[1726580908792,0.03793084,59083.0,59081.0,0.084624]
[1726580908995,0.0008,59082.0,59081.0,0.084624]
[1726580910104,0.0008,59082.0,59081.0,0.47398045]
[1726580910297,0.0008,59082.0,59081.0,0.98174045]
[1726580910493,0.06071428,59096.0,59081.0,1.50111645]
[1726580910696,0.06071428,59105.0,59101.0,0.084596]
[1726580910897,0.06071428,59105.0,59101.0,0.444596]
[1726580911395,0.06071428,59105.0,59103.0,0.084593]
[1726580911604,0.06071428,59105.0,59101.0,0.36]
[1726580911902,0.0008,59102.0,59098.0,0.00253802]
[1726580912510,0.36,59099.0,59079.0,0.36]
[1726580912697,0.0008,59086.0,59079.0,0.36]
[1726580912899,0.0008,59086.0,59084.0,0.36]
[1726580913208,0.0008,59086.0,59085.0,0.084619]
[1726580914301,0.05275235,59086.0,59085.0,0.006]
[1726580914505,0.05275235,59086.0,59085.0,0.008]
[1726580915001,0.05375235,59086.0,59085.0,0.012]
[1726580915399,0.05475235,59086.0,59085.0,0.464619]
[1726580915900,0.05475398,59086.0,59085.0,0.464619]
[1726580916305,0.05375398,59086.0,59085.0,0.457619]
[1726580916515,0.0018,59086.0,59085.0,0.097619]
[1726580916701,0.0008,59086.0,59085.0,0.087619]
[1726580916901,0.0008,59086.0,59085.0,0.089619]
[1726580917104,0.0008,59086.0,59085.0,0.005]
[1726580917713,0.05276076,59086.0,59085.0,0.005]
[1726580917911,0.49817876,59086.0,59085.0,0.005]
[1726580918213,0.510618,59086.0,59085.0,0.005]
[1726580918598,0.426,59086.0,59085.0,0.005]
[1726580918913,0.426,59086.0,59085.0,0.089619]
[1726580918914,0.3616,59086.0,59085.0,0.089619]
[1726580919098,0.3616,59086.0,59085.0,0.449619]
[1726580919301,0.3616,59086.0,59085.0,0.089619]
[1726580919901,0.3616,59086.0,59085.0,0.11801969]
[1726580920302,0.3616,59086.0,59085.0,0.47801969]
[1726580921112,0.0008,59086.0,59085.0,0.83881969]
[1726580921307,0.0008,59086.0,59085.0,2.03115869]
[1726580921811,0.3608,59093.0,59092.0,0.444609]
[1726580922009,0.3616,59102.0,59099.0,0.084598]
[1726580922204,0.3616,59102.0,59101.0,0.0004]
[1726580922411,0.3616,59102.0,59098.0,0.0846]
[1726580922601,0.0004,59099.0,59098.0,0.0846]
[1726580923504,0.05235023,59099.0,59098.0,0.0846]
[1726580923906,0.05235027,59099.0,59098.0,0.0846]
[1726580924911,0.05435027,59099.0,59098.0,0.0846]
[1726580925313,0.05535027,59099.0,59098.0,0.0846]
[1726580925514,0.06035027,59099.0,59098.0,0.0846]
[1726580926313,0.0603472,59099.0,59098.0,0.0846]
[1726580927117,0.0084,59099.0,59098.0,0.0846]
[1726580927313,0.0034,59099.0,59098.0,0.0846]
[1726580927615,0.0074,59099.0,59098.0,0.0846]
[1726580927819,0.0064,59099.0,59096.0,0.02810677]
[1726580928023,0.3608,59098.0,59097.0,0.084602]
[1726580928514,0.41275093,59098.0,59097.0,0.084602]
[1726580928711,0.3608,59098.0,59097.0,0.084602]
[1726580929518,0.41275043,59098.0,59097.0,0.084602]
[1726580929715,0.41275043,59098.0,59092.0,0.39201889]
[1726580930017,0.0004,59093.0,59092.0,0.19991689]
[1726580930222,0.0004,59093.0,59092.0,0.42991689]
[1726580930412,0.05235037,59093.0,59092.0,0.03069889]
[1726580930608,0.05235037,59093.0,59092.0,0.11530789]
[1726580931708,0.05235037,59093.0,59092.0,0.11830789]
[1726580931907,0.05235037,59093.0,59092.0,0.03369889]
[1726580932121,0.47385501,59093.0,59092.0,0.007]
[1726580932418,0.47385501,59093.0,59092.0,0.00630001]
[1726580932722,0.55846301,59093.0,59092.0,0.00230001]
[1726580932916,0.55846301,59093.0,59092.0,0.00630001]
[1726580933423,0.47385501,59093.0,59092.0,0.00630001]
[1726580933718,0.47385501,59093.0,59092.0,0.09090901]
[1726580933922,0.37975871,59093.0,59092.0,0.17551801]
[1726580934107,0.37975871,59093.0,59092.0,0.09090901]
[1726580934719,0.11305501,59093.0,59092.0,0.09090901]
[1726580935822,0.11305501,59093.0,59092.0,0.32090901]
[1726580937315,0.37975871,59093.0,59092.0,0.399218]
[1726580938118,0.11305501,59093.0,59092.0,0.399218]
[1726580938319,0.11305501,59093.0,59092.0,0.314609]
[1726580938509,0.05235037,59093.0,59092.0,0.314609]
[1726580938715,0.05235037,59093.0,59090.0,0.02863113]
[1726580938916,0.0008,59091.0,59087.0,0.23]
[1726580939221,0.0008,59091.0,59090.0,0.084612]
[1726580939519,0.05275145,59091.0,59090.0,0.084612]
[1726580940024,0.05275145,59091.0,59090.0,0.090612]
[1726580940433,0.05275145,59091.0,59090.0,0.006]
[1726580940725,0.13736245,59091.0,59090.0,0.006]
[1726580940912,0.086411,59091.0,59090.0,0.006]
[1726580941517,0.0018,59091.0,59090.0,0.006]
[1726580941719,0.05275699,59091.0,59090.0,0.01]
[1726580942020,0.13736799,59091.0,59090.0,0.004]
[1726580942317,0.05375699,59091.0,59090.0,0.093612]
[1726580942524,0.084617,59087.0,59084.0,0.00253873]
[1726580942719,0.084617,59087.0,59077.0,0.5513]
[1726580942720,0.084623,59082.0,59080.0,0.02787861]
[1726580942921,0.3608,59082.0,59068.0,0.00148]
[1726580943142,0.3608,59072.0,59063.0,0.23]
[1726580943316,0.0008,59069.0,59068.0,0.084643]
[1726580943627,0.3608,59072.0,59063.0,0.25838803]
[1726580943829,0.3608,59072.0,59068.0,0.084643]
[1726580944224,0.084645,59067.0,59063.0,0.34303803]
[1726580944531,0.0008,59064.0,59053.0,0.00092]
[1726580944732,0.3608,59058.0,59053.0,0.02783592]
[1726580944919,0.3476,59058.0,59052.0,0.23]
[1726580945118,0.0008,59064.0,59056.0,0.23]
[1726580945321,0.0008,59064.0,59061.0,0.23]
[1726580945715,0.0008,59064.0,59063.0,0.003]
[1726580945716,0.2308,59064.0,59063.0,0.003]
[1726580946030,0.0008,59064.0,59058.0,0.00253985]
[1726580946214,0.3608,59059.0,59058.0,0.00253985]
[1726580946421,0.3616,59059.0,59058.0,0.00253985]
[1726580946916,0.5916,59059.0,59058.0,0.00253985]
[1726580947216,0.42233423,59059.0,59048.0,0.03087143]
[1726580947417,0.0008,59049.0,59048.0,0.00254012]
[1726580947614,0.0008,59049.0,59048.0,0.08721212]
[1726580947813,0.06073423,59055.0,59054.0,0.084664]
[1726580948029,0.06073423,59058.0,59051.0,0.23]
[1726580948215,0.06073423,59058.0,59054.0,0.0008]
[1726580948624,0.06073423,59058.0,59057.0,0.23]
[1726580948830,0.3628,59059.0,59058.0,0.084658]
[1726580949018,0.3618,59059.0,59058.0,0.084658]
[1726580949218,0.3608,59059.0,59058.0,0.084658]
[1726580949418,0.06074489,59065.0,59057.0,0.23]
[1726580949622,0.0656,59066.0,59064.0,0.23]
[1726580949924,0.0656,59066.0,59065.0,0.084648]
[1726580950531,0.3608,59068.0,59064.0,0.23]
[1726580950728,0.0004,59065.0,59064.0,0.23]
[1726580950923,0.0004,59065.0,59064.0,0.314649]
[1726580951227,0.06073298,59079.0,59064.0,1.33792]
[1726580951431,0.3608,59077.0,59076.0,0.084632]
[1726580951823,0.3608,59077.0,59074.0,0.23]
[1726580952026,0.0004,59075.0,59071.0,0.08717725]
[1726580952226,0.0004,59072.0,59071.0,0.08717725]
[1726580952521,0.3608,59077.0,59076.0,0.084632]
[1726580952731,0.001,59079.0,59076.0,0.3612]
[1726580952922,0.001,59079.0,59078.0,0.085029]
[1726580953128,0.001,59079.0,59078.0,0.084629]
[1726580954127,0.3608,59086.0,59078.0,0.084629]
[1726580954326,0.3608,59086.0,59085.0,0.0004]
[1726580955734,0.3698,59086.0,59085.0,0.0004]
[1726580955924,0.3808,59086.0,59085.0,0.0004]
[1726580956126,0.02,59086.0,59085.0,0.2304]
[1726580956335,0.02,59086.0,59085.0,0.315019]
[1726580956934,0.00646447,59086.0,59085.0,1.422739]
[1726580957138,0.3608,59097.0,59096.0,0.084603]
[1726580957325,0.41275009,59097.0,59096.0,0.315003]
[1726580957526,0.41275009,59097.0,59096.0,0.085003]
[1726580957727,0.41275009,59097.0,59096.0,0.315003]
[1726580958032,0.41275009,59097.0,59096.0,0.0004]
[1726580958535,0.50335209,59097.0,59096.0,0.0004]
[1726580958838,0.56865209,59097.0,59096.0,0.0004]
[1726580959241,0.48405009,59097.0,59096.0,0.0004]
[1726580959740,0.06195009,59097.0,59096.0,0.445803]
[1726580960624,0.05795009,59097.0,59096.0,0.445803]
[1726580960827,0.06995009,59097.0,59096.0,0.447803]
[1726580961032,0.06995009,59097.0,59096.0,0.3632]
[1726580961232,0.06995009,59097.0,59096.0,0.447803]
[1726580961428,0.05895009,59097.0,59096.0,0.446803]
[1726580961627,0.05595009,59097.0,59096.0,0.085003]
[1726580962236,0.06195009,59097.0,59096.0,0.086003]
[1726580962436,0.06795009,59097.0,59096.0,0.087003]
[1726580964136,0.06095009,59097.0,59096.0,0.086003]
[1726580964326,0.06095009,59097.0,59096.0,0.0014]
[1726580964532,0.05695009,59097.0,59096.0,0.0004]
[1726580964743,0.05695009,59097.0,59096.0,0.085003]
[1726580965434,0.05595009,59097.0,59096.0,0.085003]
[1726580965836,0.05595009,59097.0,59096.0,0.0004]
[1726580966034,0.05595009,59097.0,59096.0,0.085003]
[1726580966234,0.05595009,59097.0,59096.0,0.315003]
[1726580966748,0.05595009,59097.0,59096.0,0.085003]
[1726580967333,0.05895009,59097.0,59096.0,0.085003]
[1726580967744,0.05495009,59097.0,59096.0,0.085003]
[1726580968044,0.06095009,59097.0,59096.0,0.085003]
[1726580968547,0.05995009,59097.0,59096.0,0.085003]
[1726580969238,0.05595009,59097.0,59096.0,0.085003]
[1726580969443,0.05895009,59097.0,59096.0,0.085003]
[1726580970438,0.05895009,59097.0,59096.0,0.0004]
[1726580970845,0.43425316,59097.0,59074.0,0.23]
[1726580971033,0.0004,59084.0,59076.0,0.3661]
[1726580971235,0.05235009,59084.0,59083.0,0.3897661]
[1726580971435,0.05235009,59084.0,59083.0,0.0289661]
[1726580971436,0.28235009,59084.0,59083.0,0.0289661]
[1726580971635,0.084622,59083.0,59077.0,0.08463]
[1726580971837,0.084622,59083.0,59076.0,0.0004]
[1726580971838,0.06110107,59083.0,59082.0,0.08716183]
[1726580972035,0.0004,59083.0,59082.0,0.03118909]
[1726580972852,0.0014,59083.0,59082.0,0.03118909]
[1726580973157,0.0014,59083.0,59068.0,0.084643]
[1726580973158,0.084624,59082.0,59068.0,0.084643]
[1726580973351,0.23,59078.0,59071.0,0.08717825]
[1726580973650,0.085038,59072.0,59071.0,0.00253925]
[1726580973847,0.0004,59072.0,59071.0,0.00253925]
[1726580974755,0.0004,59072.0,59071.0,0.08717825]
[1726580975049,0.0004,59072.0,59071.0,0.12756673]
[1726580975050,0.0014,59072.0,59071.0,0.12756673]
[1726580975242,0.0014,59072.0,59071.0,0.13856673]
[1726580975641,0.001,59078.0,59071.0,0.05392773]
[1726580975845,0.3245779,59081.0,59080.0,0.084626]
[1726580976054,0.0717,59087.0,59080.0,0.0004]
[1726580976055,0.3608,59086.0,59080.0,0.0004]
[1726580976347,0.3608,59086.0,59085.0,0.085019]
[1726580976555,0.3608,59086.0,59085.0,0.084619]
[1726580976740,0.47348346,59086.0,59085.0,0.084619]
[1726580977151,0.47348346,59086.0,59084.0,0.23]
[1726580977348,0.0523607,59085.0,59084.0,0.314621]
[1726580977952,0.0523607,59085.0,59081.0,0.00253885]
[1726580978153,0.0519607,59084.0,59081.0,0.00253885]
[1726580978459,0.085023,59082.0,59081.0,0.00253885]
[1726580978749,0.0004,59082.0,59081.0,0.03076176]
[1726580978948,0.0004,59082.0,59081.0,0.08716385]
[1726580979751,0.0004,59082.0,59081.0,0.08816385]
[1726580980648,0.0004,59082.0,59081.0,0.44896385]
[1726580981451,0.05236001,59082.0,59081.0,0.44896385]
[1726580981846,0.05235702,59082.0,59081.0,0.44896385]
[1726580983448,0.05235702,59082.0,59081.0,0.36433885]
[1726580983644,0.0004,59082.0,59081.0,0.36433885]
[1726580984754,0.0004,59082.0,59081.0,0.44796385]
[1726580985752,0.05235979,59082.0,59081.0,0.44796385]
[1726580985949,0.05236028,59082.0,59081.0,0.44796385]
[1726580986552,0.05235807,59082.0,59081.0,0.44796385]
[1726580989549,0.11306983,59082.0,59081.0,0.48490784]
[1726580989749,0.0004,59082.0,59081.0,0.48490784]
[1726580990955,0.0004,59082.0,59081.0,0.56953284]
[1726580991259,0.0004,59082.0,59081.0,0.48490784]
[1726580991554,0.0004,59082.0,59081.0,0.40028284]
[1726580992863,0.16925,59081.0,59080.0,0.02884629]
[1726580993157,1.14467176,59081.0,59077.0,0.0004]
[1726580993356,0.169658,59078.0,59077.0,0.0004]
[1726580993558,0.169658,59078.0,59077.0,0.02872357]
[1726580993559,0.084629,59078.0,59077.0,0.02872357]
[1726580993764,0.084629,59078.0,59077.0,0.0004]
[1726580995055,0.084638,59072.0,59071.0,0.00253925]
[1726580995256,0.445838,59072.0,59071.0,0.03156663]
[1726580995456,0.50654976,59072.0,59071.0,0.00253925]
[1726580995669,0.084652,59062.0,59053.0,0.0084]
[1726580995957,0.084675,59046.0,59045.0,0.00104]
[1726580996168,0.3608,59046.0,59045.0,0.00104]
[1726580996456,1.46968,59046.0,59037.0,0.00254078]
[1726580996648,1.46968,59046.0,59033.0,0.02786594]
[1726580996649,0.084692,59034.0,59033.0,0.02786594]
[1726580996856,0.084692,59034.0,59016.0,0.3692]
[1726580996857,0.2308,59034.0,59016.0,0.3608]
[1726580997158,0.3608,59025.0,59020.0,0.084712]
[1726580997357,0.3498,59025.0,59020.0,0.084712]
[1726580997547,0.3498,59025.0,59017.0,0.00254144]
[1726580997548,0.3608,59021.0,59017.0,0.00254144]
[1726580997749,0.0008,59018.0,59017.0,0.00254144]
[1726580997956,0.3506,59021.0,59017.0,0.00254144]
[1726580998166,0.3386,59021.0,59017.0,0.00334144]
[1726580999672,0.001,59018.0,59017.0,0.01734144]
[1726581000956,0.001,59018.0,59017.0,0.24734144]
[1726581001156,0.002,59018.0,59017.0,0.01734144]
[1726581001551,0.002,59018.0,59017.0,0.00334144]
[1726581001552,0.001,59018.0,59017.0,0.00334144]
[1726581002358,0.832,59018.0,59017.0,0.00334144]
[1726581002653,1.34032,59018.0,59006.0,0.084732]
[1726581002857,1.34032,59018.0,59014.0,0.084721]
[1726581002858,0.3608,59015.0,59014.0,0.084721]
[1726581003470,0.002,59018.0,59017.0,0.084717]
[1726581004582,0.002,59018.0,59011.0,0.00254188]
[1726581004583,0.001,59015.0,59011.0,0.00254188]
[1726581004873,0.3616,59012.0,59011.0,0.00254188]
[1726581005174,0.3616,59012.0,59011.0,0.08726688]
[1726581005358,0.3616,59012.0,59011.0,0.00254188]
[1726581005559,0.3526,59012.0,59011.0,0.00254188]
[1726581005865,0.3526,59012.0,59011.0,0.08726688]
[1726581006366,0.0008,59012.0,59011.0,0.44806688]
[1726581006662,0.0018,59012.0,59011.0,0.45706688]
[1726581007760,0.0028,59012.0,59011.0,0.45706688]
[1726581008966,0.2328,59012.0,59011.0,0.37234188]
[1726581009169,0.2328,59012.0,59011.0,0.01154188]
[1726581009370,0.678324,59012.0,59011.0,0.01154188]
[1726581009669,0.084746,58997.0,58990.0,0.02844695]
[1726581009859,0.0008,58991.0,58983.0,0.23]
[1726581010065,0.0008,58991.0,58988.0,0.23]
[1726581010267,0.0008,58991.0,58990.0,0.084755]
[1726581010458,0.0008,58991.0,58988.0,0.23]
[1726581010459,0.0008,58991.0,58988.0,0.3608]
[1726581010659,0.0008,58991.0,58990.0,0.084755]
[1726581011273,0.001,58997.0,58996.0,0.084747]
[1726581011471,0.002,58997.0,58996.0,0.084747]
[1726581011779,0.002,58997.0,58993.0,0.3608]
[1726581012070,0.002,58997.0,58996.0,0.084747]
[1726581012277,0.001,58997.0,58990.0,0.00334277]
[1726581012767,0.3608,59003.0,58994.0,0.084749]
[1726581013073,0.23,58996.0,58992.0,0.084751]
[1726581013272,0.0008,58993.0,58990.0,0.00334277]
[1726581013574,0.0008,58993.0,58990.0,0.08809777]
[1726581013575,0.3608,58991.0,58990.0,0.08809777]
[1726581013775,0.3608,58991.0,58990.0,0.085555]
[1726581013959,0.3608,58991.0,58990.0,0.0008]
[1726581014159,0.5908,58991.0,58990.0,0.0008]
[1726581014560,0.5908,58991.0,58990.0,0.085555]
[1726581014761,0.3618,58991.0,58990.0,0.085555]
[1726581015776,0.3628,58991.0,58990.0,0.085555]
[1726581016568,1.47136,58991.0,58990.0,0.0008]
[1726581016870,1.47136,58991.0,58971.0,0.00092]
[1726581016871,1.79859087,58991.0,58971.0,0.00092]
[1726581017073,0.3608,58977.0,58976.0,0.084776]
[1726581017377,0.3608,58982.0,58974.0,0.3608]
[1726581017567,0.3608,58982.0,58981.0,0.084768]
[1726581017875,0.5908,58982.0,58972.0,0.03266269]
[1726581018068,0.3616,58973.0,58967.0,0.00096]
[1726581018270,0.0008,58968.0,58967.0,0.168616]
[1726581018474,0.0008,58968.0,58965.0,0.23]
[1726581018475,0.0008,58973.0,58972.0,0.084781]
[1726581018675,0.0008,58973.0,58972.0,0.169562]
[1726581018878,0.0008,58973.0,58972.0,0.530362]
[1726581019066,0.0008,58973.0,58972.0,0.084781]
[1726581019968,0.001,58982.0,58973.0,0.08478]
[1726581020163,0.001,58982.0,58981.0,0.314768]
[1726581020564,0.3608,58990.0,58989.0,0.084757]
[1726581021170,0.3608,58990.0,58985.0,0.084763]
[1726581021370,0.3608,58990.0,58987.0,0.084759]
[1726581021771,0.3608,58990.0,58984.0,0.3608]
[1726581022073,0.3718,58990.0,58989.0,0.084757]
[1726581022475,0.3608,59001.0,58989.0,0.675557]
[1726581022781,0.3608,59001.0,58984.0,0.03028117]
[1726581022782,0.23,58990.0,58984.0,0.03028117]
[1726581022980,0.23,58990.0,58982.0,0.3608]
[1726581022981,0.0008,58985.0,58982.0,0.3608]
[1726581023181,0.0008,58985.0,58984.0,0.084764]
[1726581023386,0.0008,58985.0,58984.0,0.314764]
[1726581023577,0.011,58990.0,58989.0,0.084757]
[1726581023773,0.01,58990.0,58989.0,0.445557]
[1726581024181,0.01,58990.0,58989.0,0.675557]
[1726581024476,0.01,58990.0,58989.0,0.445557]
[1726581025078,0.6008,58990.0,58987.0,0.0016]
[1726581025280,0.084758,58988.0,58987.0,0.0016]
[1726581025478,0.446358,58988.0,58987.0,0.0016]
[1726581025684,0.3616,58988.0,58987.0,0.0016]
[1726581026081,0.446358,58988.0,58987.0,0.0016]
[1726581026281,1.046358,58988.0,58987.0,0.0016]
[1726581026585,0.3616,58988.0,58987.0,0.0016]
[1726581027084,0.0008,58988.0,58987.0,0.08636]
[1726581027288,0.0039,59003.0,58987.0,0.0026]
[1726581027475,0.23,59005.0,58993.0,0.3608]
[1726581027990,0.08474,59001.0,58993.0,0.445551]
[1726581028190,0.08474,59001.0,58993.0,0.3608]
[1726581028377,0.23,59005.0,58993.0,0.3608]
[1726581028573,0.3608,58996.0,58993.0,0.08475]
[1726581028984,0.23,58995.0,58990.0,0.00254271]
[1726581029185,0.5916,58991.0,58990.0,0.00494271]
[1726581029389,0.676354,58991.0,58990.0,0.00494271]
[1726581029574,1.361108,58991.0,58990.0,0.00494271]
[1726581029779,1.869668,58991.0,58990.0,0.00494271]
[1726581030087,0.446354,58991.0,58990.0,0.00494271]
[1726581030389,1.276354,58991.0,58990.0,0.0024]
[1726581030594,1.784914,58991.0,58990.0,0.0024]
[1726581030980,2.0401534,58991.0,58990.0,0.0024]
[1726581031581,2.0391534,58991.0,58990.0,0.0024]
[1726581031780,2.0481534,58991.0,58990.0,0.0024]
[1726581032082,0.084776,58976.0,58975.0,0.00254343]
[1726581032285,0.676376,58976.0,58975.0,0.00254343]
[1726581032591,0.5916,58976.0,58975.0,0.00254343]
[1726581032788,0.084782,58972.0,58963.0,0.03078887]
[1726581032988,0.23,58968.0,58967.0,0.084788]
[1726581033212,0.084797,58961.0,58960.0,0.00254409]
[1726581033379,0.084797,58961.0,58958.0,0.084801]
[1726581033380,0.0008,58961.0,58958.0,0.084801]
[1726581033586,0.2308,58959.0,58958.0,0.084801]
[1726581033888,0.0008,58959.0,58958.0,0.084801]
[1726581034083,0.0039,58974.0,58960.0,0.084799]
[1726581034288,0.3647,58981.0,58972.0,0.23]
[1726581034484,0.009,58991.0,58982.0,0.084767]
[1726581034689,0.009,58991.0,58978.0,0.3608]
[1726581034690,0.23,58990.0,58978.0,0.3608]
[1726581034889,0.0008,58979.0,58978.0,0.3608]
[1726581035190,0.009,58991.0,58980.0,0.00254323]
[1726581035497,0.009,58991.0,58986.0,0.084761]
[1726581035794,0.009,58991.0,58990.0,0.084755]
[1726581036091,0.3608,58995.0,58994.0,0.08475]
[1726581036396,0.3608,58995.0,58990.0,0.084755]
[1726581036689,0.0008,58991.0,58990.0,0.084755]
[1726581037583,0.2308,58991.0,58987.0,0.00254294]
[1726581037788,0.085558,58988.0,58987.0,0.00254294]
[1726581037990,0.085558,58988.0,58974.0,0.0024]
[1726581037991,0.0528514,58988.0,58974.0,0.0024]
[1726581038181,0.5908,58978.0,58974.0,0.0024]
[1726581038387,0.085577,58975.0,58974.0,0.0024]
[1726581039090,1.194257,58975.0,58974.0,0.0024]
[1726581039392,1.194258,58975.0,58960.0,0.0039]
[1726581039691,0.0008,58961.0,58960.0,0.084799]
[1726581040594,0.0008,58961.0,58957.0,0.00254419]
[1726581040887,0.3608,58965.0,58960.0,0.084799]
[1726581041089,0.3608,58965.0,58957.0,0.00254419]
[1726581041282,0.3608,58965.0,58964.0,0.084793]
[1726581041477,0.3608,58965.0,58961.0,0.36]
[1726581041478,0.3608,58972.0,58970.0,0.084783]
[1726581041686,0.3608,58972.0,58967.0,0.36]
[1726581041888,0.3608,58972.0,58971.0,0.084783]
[1726581043382,0.3618,58972.0,58971.0,0.093783]
[1726581043780,0.41386117,58972.0,58971.0,0.009]
[1726581043984,0.85864217,58972.0,58971.0,0.009]
[1726581044295,0.85764217,58972.0,58967.0,0.0025438]
[1726581044589,0.0008,58968.0,58967.0,0.0025438]
[1726581044788,0.05286117,58968.0,58967.0,0.0025438]
[1726581045381,0.05286117,58968.0,58967.0,0.0873318]
[1726581045788,0.05286117,58968.0,58967.0,0.0025438]
[1726581046792,0.05286117,58968.0,58967.0,0.0873318]
[1726581047691,0.05286117,58968.0,58967.0,0.4473318]
[1726581047891,0.05286117,58968.0,58967.0,0.0873318]
[1726581048192,0.05286117,58968.0,58967.0,0.0883318]
[1726581049000,0.05286117,58968.0,58967.0,0.11874408]
[1726581049386,0.3608,58972.0,58968.0,0.084787]
[1726581049387,0.42163066,58972.0,58968.0,0.084787]
[1726581049595,0.084772,58979.0,58974.0,0.084778]
[1726581049790,0.06082849,58982.0,58975.0,0.084776]
[1726581049993,0.3608,58983.0,58968.0,0.0008]
[1726581049994,0.3608,58978.0,58968.0,0.0008]
[1726581050195,0.0008,58969.0,58968.0,0.085587]
[1726581050501,0.3608,58969.0,58968.0,0.0008]
[1726581050687,0.42162849,58969.0,58968.0,0.0008]
[1726581050884,0.445586,58969.0,58968.0,0.0008]
[1726581051487,0.3608,58969.0,58968.0,0.0008]
[1726581051897,0.445586,58969.0,58968.0,0.0008]
[1726581052293,0.3608,58969.0,58968.0,0.0008]
[1726581052495,0.3608,58969.0,58968.0,0.085587]
[1726581052704,0.0028,58969.0,58968.0,0.085587]
[1726581054490,0.0028,58969.0,58968.0,0.11537942]
[1726581054692,0.0028,58969.0,58968.0,0.20016642]
[1726581054898,0.088665,58984.0,58983.0,0.084765]
[1726581054899,0.0039,58984.0,58983.0,0.084765]
[1726581055093,0.05205565,58984.0,58983.0,0.084765]
[1726581055295,0.05205565,58984.0,58983.0,0.445565]
[1726581056300,0.06604419,58984.0,58983.0,0.954165]
[1726581056706,0.06604419,58984.0,58983.0,0.084765]
[1726581056897,0.06604419,58984.0,58983.0,0.11596272]
[1726581057201,0.42604419,58984.0,58980.0,0.00254315]
[1726581057406,0.0008,58981.0,58980.0,0.00254315]
[1726581057700,0.11365963,58981.0,58980.0,0.00254315]
[1726581058094,0.23577027,58981.0,58980.0,0.08731315]
[1726581058402,0.11365963,58981.0,58980.0,0.08731315]
[1726581058604,0.05284419,58981.0,58980.0,0.08731315]
[1726581059107,0.05384419,58981.0,58977.0,0.3608]
[1726581059302,0.0008,58978.0,58977.0,0.03069049]
[1726581059503,0.0008,58978.0,58976.0,0.0016]
[1726581059504,0.11365963,58978.0,58976.0,0.0016]
[1726581059708,0.11365963,58978.0,58976.0,0.086376]
[1726581059709,0.11365963,58977.0,58976.0,0.086376]
[1726581060006,0.11365963,58977.0,58976.0,0.11654398]
[1726581060508,0.06161544,58977.0,58976.0,0.11654398]
[1726581060696,0.11366827,58977.0,58976.0,0.11654398]
[1726581061394,0.36762683,58977.0,58976.0,0.0016]